fUST/lending_fUST_20250203
["ID","MTS","AMOUNT","RATE_DAILY","PERIOD"]
[351357074,1738536642650,-151.0,0.00016985,2]
[351357076,1738536642661,-151.0,0.00016985,2]
[351357080,1738536642671,-375.490446,0.00016985,2]
[351357083,1738536642683,-375.490446,0.00016985,2]
[351357085,1738536642698,-151.0,0.00016985,2]
[351357087,1738536642708,-151.0,0.00016985,2]
[351357089,1738536642717,-5779.17,0.00016985,2]
[351357091,1738536642726,-500.0,0.00016985,2]
[351357093,1738536642735,-500.0,0.00016986,2]
[351357094,1738536642745,-151.0,0.00016986,2]
[351357096,1738536642755,-151.0,0.00016986,2]
[351357098,1738536642764,-151.0,0.00016986,2]
[351357099,1738536642774,-151.0,0.00016986,2]
[351357100,1738536642785,-151.0,0.00016986,2]
[351357102,1738536642795,-500.18,0.00016986,2]
[351357103,1738536642805,-151.0,0.00016986,2]
[351357104,1738536642815,-151.0,0.00016986,2]
[351357105,1738536642964,-261.09,0.00016986,2]
[351357106,1738536642979,-151.0,0.00016986,2]
[351357107,1738536642989,-500.0,0.00016986,2]
[351357108,1738536642999,-500.0,0.00016986,2]
[351357109,1738536643009,-500.0,0.00016986,2]
[351357110,1738536643019,-533.49,0.00016986,2]
[351357111,1738536643030,-500.0,0.00016986,2]
[351357112,1738536643039,-396.72812116,0.00016986,2]
[351357113,1738536643049,-500.0,0.00016986,2]
[351357114,1738536643059,-151.0,0.00016986,2]
[351357115,1738536643069,-500.0,0.00016986,2]
[351357116,1738536643078,-500.0,0.00016986,2]
[351357117,1738536643088,-500.0,0.00016986,2]
[351357118,1738536643098,-375.490446,0.00016986,2]
[351357119,1738536643107,-375.490446,0.00016986,2]
[351357120,1738536643117,-1145.47,0.00016986,2]
[351357121,1738536643126,-500.0,0.00016986,2]
[351357122,1738536643136,-500.0,0.00016986,2]
[351357123,1738536643145,-151.0,0.00016986,2]
[351357124,1738536643156,-176.83261757,0.00016986,2]
[351357125,1738536643166,-259.894627,0.00016986,2]
[351357126,1738536643175,-500.0,0.00016986,2]
[351357127,1738536643187,-1335.28,0.00016986,2]
[351357128,1738536643196,-287.506908,0.00016986,2]
[351357129,1738536643205,-1945.69,0.00016986,2]
[351357130,1738536643215,-799.04,0.00016986,2]
[351357131,1738536643224,-500.0,0.00016986,2]
[351357132,1738536643233,-508.34,0.00016986,2]
[351357133,1738536643242,-1211.27,0.00016986,2]
[351357134,1738536643253,-7344.67,0.00016986,2]
[351357135,1738536643262,-6297.26,0.00016986,2]
[351357136,1738536643271,-650.73,0.00016986,2]
[351357137,1738536643280,-500.0,0.00016986,2]
[351357138,1738536643290,-1715.66,0.00016986,2]
[351357139,1738536643299,-558.19,0.00016986,2]
[351357140,1738536643309,-803.62,0.00016986,2]
[351357141,1738536643318,-500.0,0.00016986,2]
[351357142,1738536643327,-1571.48,0.00016986,2]
[351357143,1738536643337,-500.0,0.00016986,2]
[351357144,1738536643346,-500.0,0.00016986,2]
[351357145,1738536643355,-610.13688931,0.00016986,2]
[351357146,1738536643365,-151.0,0.00016986,2]
[351357147,1738536643375,-500.0,0.00016986,2]
[351357148,1738536643384,-500.0,0.00016986,2]
[351357149,1738536643393,-838.23,0.00016986,2]
[351357150,1738536643402,-610.09,0.00016986,2]
[351357151,1738536643411,-4068.28,0.00016986,2]
[351357152,1738536643421,-1341.99,0.00016986,2]
[351357153,1738536643430,-500.0,0.00016986,2]
[351357154,1738536643442,-500.0,0.00016986,2]
[351357155,1738536643451,-3625.05,0.00016986,2]
[351357156,1738536643460,-194.055372,0.00016986,2]
[351357157,1738536643470,-1352.18,0.00016986,2]
[351357158,1738536643480,-194.055372,0.00016986,2]
[351357159,1738536643489,-500.0,0.00016986,2]
[351357160,1738536643498,-500.0,0.00016986,2]
[351357161,1738536643508,-657.54,0.00016986,2]
[351357162,1738536643517,-500.0,0.00016986,2]
[351357163,1738536643527,-1405.53,0.00016986,2]
[351357164,1738536643536,-500.0,0.00016986,2]
[351357165,1738536643545,-903.71,0.00016986,2]
[351357166,1738536643555,-500.0,0.00016986,2]
[351357167,1738536643564,-26680.0,0.00017,2]
[351357168,1738536643573,-500.0,0.00017,7]
[351357169,1738536643583,-500.0,0.00017,7]
[351357170,1738536643592,-500.0,0.00017,7]
[351357171,1738536643602,-500.0,0.00017,7]
[351357172,1738536643615,-500.0,0.00017,7]
[351357173,1738536643625,-415.41335461,0.00017,7]
[351357174,1738536643638,-84.58664539,0.00017,7]
[351357175,1738536643647,-500.0,0.00017,7]
[351357176,1738536643657,-500.0,0.00017,7]
[351357177,1738536643666,-500.0,0.00017,7]
[351357178,1738536643676,-500.0,0.00017,7]
[351357179,1738536643685,-500.0,0.00017,7]
[351357180,1738536643695,-223.51335459,0.00017,7]
[351357181,1738536643708,-276.48664541,0.00017,7]
[351357182,1738536643717,-228.52,0.00017,7]
[351357183,1738536643726,-165.581721,0.00017,2]
[351357184,1738536643736,-165.581721,0.00017,2]
[351357185,1738536643745,-157.86931,0.00017,2]
[351357186,1738536643755,-151.0,0.00017,2]
[351357187,1738536643765,-151.0,0.00017,2]
[351357188,1738536643774,-151.0,0.00017,2]
[351357189,1738536643784,-181.078486,0.00017,2]
[351357190,1738536643794,-151.0,0.00017,2]
[351357191,1738536643804,-151.0,0.00017,2]
[351357192,1738536643815,-151.0,0.00017,2]
[351357193,1738536643825,-151.0,0.00017,2]
[351357194,1738536643834,-751.75041632,0.00017003,2]
[351357195,1738536643843,-529.61171868,0.00017007,2]
[351357196,1738536643854,-751.75041632,0.00017038,2]
[351357197,1738536643863,-151.0,0.00017038,2]
[351357198,1738536643874,-151.0,0.00017038,2]
[351357199,1738536643883,-708.9892088,0.00017041,2]
[351357200,1738536643893,-751.75041632,0.00017072,2]
[351357201,1738536643902,-290.9500322,0.00017087,2]
[351357202,1738536643912,-751.75041632,0.00017107,2]
[351357203,1738536643921,-151.0,0.00017122,2]
[351357204,1738536643931,-375.490446,0.00017122,2]
[351357205,1738536643942,-375.490446,0.00017122,2]
[351357206,1738536643951,-151.0,0.00017122,2]
[351357207,1738536643961,-2276.34859963,0.00017122,2]
[351357208,1738536643974,-658.53679515,0.00017122,2]
[351357277,1738536645901,153.0,0.00013699,2]
[351357288,1738536646021,-500.0,0.00016438,2]
[351357289,1738536646030,-507.26912374,0.00016438,2]
[351357290,1738536646040,-500.0,0.00016438,2]
[351357291,1738536646049,-1601.40860206,0.00016438,2]
[351357292,1738536646061,-19.08139794,0.00016438,2]
[351357293,1738536646071,-643.95,0.00016575,2]
[351357294,1738536646080,-1620.49,0.00016575,2]
[351357295,1738536646090,-500.0,0.00017122,2]
[351357296,1738536646099,-151.0,0.00017122,2]
[351357297,1738536646109,-194.055372,0.00017122,2]
[351357298,1738536646118,-194.055372,0.00017122,2]
[351357299,1738536646128,-153.015441,0.00017123,2]
[351357300,1738536646137,-310.67522494,0.00017123,2]
[351357301,1738536646146,-165.581721,0.00017123,2]
[351357302,1738536646156,-165.581721,0.00017123,2]
[351357303,1738536646165,-153.631999,0.00017123,2]
[351357304,1738536646175,-151.0,0.00017123,2]
[351357305,1738536646184,-151.0,0.00017123,2]
[351357306,1738536646196,-500.18,0.00017123,2]
[351357307,1738536646206,-151.0,0.00017123,2]
[351357308,1738536646216,-151.0,0.00017123,2]
[351357309,1738536646225,-271.98,0.00017123,2]
[351357310,1738536646234,-586.64657796,0.00017123,2]
[351357311,1738536646244,-151.0,0.00017123,2]
[351357312,1738536646254,-500.0,0.00017123,2]
[351357313,1738536646263,-533.49,0.00017123,2]
[351357314,1738536646273,-396.82328533,0.00017123,2]
[351357316,1738536646285,-103.17671467,0.00017123,2]
[351357318,1738536646295,-500.0,0.00017123,2]
[351357319,1738536646307,-500.0,0.00017123,2]
[351357320,1738536646317,-1145.47,0.00017123,2]
[351357321,1738536646326,-500.0,0.00017123,2]
[351357322,1738536646336,-532.18,0.00017123,2]
[351357323,1738536646346,-460.05,0.00017123,2]
[351357324,1738536646355,-799.04,0.00017123,2]
[351357325,1738536646365,-500.0,0.00017123,2]
[351357326,1738536646375,-508.34,0.00017123,2]
[351357327,1738536646385,-1211.27,0.00017123,2]
[351357328,1738536646395,-7344.67,0.00017123,2]
[351357329,1738536646404,-6297.26,0.00017123,2]
[351357330,1738536646414,-650.73,0.00017123,2]
[351357331,1738536646423,-477.67584533,0.00017123,2]
[351357332,1738536646434,-1715.66,0.00017123,2]
[351357333,1738536646444,-558.19,0.00017123,2]
[351357334,1738536646453,-803.62,0.00017123,2]
[351357335,1738536646463,-500.0,0.00017123,2]
[351357336,1738536646472,-1571.48,0.00017123,2]
[351357337,1738536646481,-500.0,0.00017123,2]
[351357338,1738536646491,-500.0,0.00017123,2]
[351357339,1738536646500,-500.0,0.00017123,2]
[351357340,1738536646510,-500.0,0.00017123,2]
[351357341,1738536646520,-838.23,0.00017123,2]
[351357342,1738536646530,-610.09,0.00017123,2]
[351357343,1738536646540,-1341.99,0.00017123,2]
[351357344,1738536646549,-1756.67744068,0.00017123,2]
[351357345,1738536646561,-2311.60255932,0.00017123,2]
[351357346,1738536646571,-500.0,0.00017123,2]
[351357347,1738536646581,-163.39743818,0.00017123,2]
[351357348,1738536646593,-336.60256182,0.00017123,2]
[351357349,1738536646602,-628.39743818,0.00017123,2]
[351357351,1738536646614,-2954.79151319,0.00017123,2]
[351357353,1738536646629,-41.86104863,0.00017123,2]
[351357354,1738536646639,-1352.18,0.00017123,2]
[351357355,1738536646648,-500.0,0.00017123,2]
[351357356,1738536646659,-392.18054708,0.00017123,2]
[351357358,1738536646706,153.0,0.00013699,2]
[351357359,1738536646720,-500.0,0.00016438,2]
[351357360,1738536646730,-107.81945292,0.00017123,2]
[351357361,1738536646741,-657.54,0.00017123,2]
[351357362,1738536646750,-326.44054709,0.00017123,2]
[351357364,1738536646762,-173.55945291,0.00017123,2]
[351357366,1738536646771,-1405.53,0.00017123,2]
[351357368,1738536646780,-500.0,0.00017123,2]
[351357370,1738536646790,-903.71,0.00017123,2]
[351357372,1738536646799,-500.0,0.00017123,2]
[351357373,1738536646808,-751.75041632,0.00017141,2]
[351357375,1738536646818,-27.16893827,0.00017176,2]
[351357376,1738536646829,-724.58147805,0.00017176,2]
[351357377,1738536646838,-751.75041632,0.0001721,2]
[351357379,1738536646847,-529.61171868,0.00017231,2]
[351357381,1738536646857,-151.0,0.0001724,2]
[351357382,1738536646866,-151.0,0.0001724,2]
[351357384,1738536646875,-537.0,0.0001724,2]
[351357386,1738536646885,-910.27638695,0.0001724,2]
[351357388,1738536646897,-1132.72361305,0.0001724,2]
[351357390,1738536646906,-2301.0,0.0001724,2]
[351357392,1738536646915,-396.0,0.0001724,2]
[351357394,1738536646925,-751.75041632,0.00017245,2]
[351357396,1738536646934,-151.0,0.00017249,2]
[351357397,1738536646946,-579.28128658,0.00017259,2]
[351357399,1738536646955,-151.0,0.00017259,2]
[351357401,1738536646965,-237.59096628,0.00017259,2]
[351357402,1738536646976,-137.89947972,0.00017259,2]
[351357404,1738536646986,-144.5274241,0.00017259,2]
[351357406,1738536646997,-230.9630219,0.00017259,2]
[351357408,1738536647006,-151.0,0.00017259,2]
[351357410,1738536647015,-500.0,0.00017259,2]
[351357411,1738536647025,-151.0,0.00017259,2]
[351357413,1738536647034,-194.055372,0.00017259,2]
[351357415,1738536647044,-194.055372,0.00017259,2]
[351357417,1738536647055,-165.581721,0.0001726,2]
[351357419,1738536647065,-165.581721,0.0001726,2]
[351357421,1738536647075,-151.0,0.0001726,2]
[351357423,1738536647085,-151.0,0.0001726,2]
[351357424,1738536647096,-500.18,0.0001726,2]
[351357426,1738536647107,-151.0,0.0001726,2]
[351357427,1738536647117,-151.0,0.0001726,2]
[351357428,1738536647127,-151.0,0.0001726,2]
[351357429,1738536647137,-215.45103281,0.0001726,2]
[351357430,1738536647147,-533.49,0.0001726,2]
[351357431,1738536647157,-500.0,0.0001726,2]
[351357432,1738536647166,-500.0,0.0001726,2]
[351357433,1738536647176,-176.01038159,0.0001726,2]
[351357434,1738536647188,-1145.47,0.0001726,2]
[351357435,1738536647198,-506.97,0.0001726,2]
[351357436,1738536647208,-799.04,0.0001726,2]
[351357437,1738536647218,-500.0,0.0001726,2]
[351357438,1738536647227,-508.34,0.0001726,2]
[351357440,1738536647236,-1211.27,0.0001726,2]
[351357443,1738536647336,-3616.98835192,0.0001726,2]
[351357444,1738536647365,-3727.68164808,0.0001726,2]
[351357445,1738536647375,-6297.26,0.0001726,2]
[351357446,1738536647385,-650.73,0.0001726,2]
[351357447,1738536647396,-1715.66,0.0001726,2]
[351357448,1738536647406,-558.19,0.0001726,2]
[351357449,1738536647416,-803.62,0.0001726,2]
[351357450,1738536647426,-500.0,0.0001726,2]
[351357451,1738536647435,-1571.48,0.0001726,2]
[351357452,1738536647447,-500.0,0.0001726,2]
[351357453,1738536647457,-500.0,0.0001726,2]
[351357454,1738536647467,-500.0,0.0001726,2]
[351357455,1738536647476,-500.0,0.0001726,2]
[351357456,1738536647486,-838.23,0.0001726,2]
[351357457,1738536647496,-610.09,0.0001726,2]
[351357458,1738536647506,-1341.99,0.0001726,2]
[351357459,1738536647516,-4068.28,0.0001726,2]
[351357460,1738536647526,-500.0,0.0001726,2]
[351357461,1738536647535,-500.0,0.0001726,2]
[351357462,1738536647544,-3625.05,0.0001726,2]
[351357463,1738536647554,-1352.18,0.0001726,2]
[351357464,1738536647563,-500.0,0.0001726,2]
[351357465,1738536647573,-657.54,0.0001726,2]
[351357466,1738536647584,-500.0,0.0001726,2]
[351357467,1738536647593,-1405.53,0.0001726,2]
[351357468,1738536647603,-903.71,0.0001726,2]
[351357469,1738536647619,-500.0,0.0001726,2]
[351357470,1738536647628,-751.75041632,0.00017279,2]
[351357471,1738536647638,-600.0,0.0001728,2]
[351357472,1738536647648,-516.323,0.00017288,2]
[351357473,1738536647658,-751.75041632,0.00017314,2]
[351357474,1738536647668,-1821.61771968,0.00017331,2]
[351357475,1738536647678,-151.0,0.00017348,2]
[351357476,1738536647690,-751.75041632,0.00017348,2]
[351357477,1738536647702,-751.75041632,0.00017383,2]
[351357479,1738536647712,-151.0,0.00017383,2]
[351357481,1738536647722,-375.490446,0.00017383,2]
[351357483,1738536647733,-375.490446,0.00017383,2]
[351357485,1738536647743,-151.0,0.00017383,2]
[351357486,1738536647752,-500.0,0.00017396,2]
[351357488,1738536647762,-151.0,0.00017396,2]
[351357490,1738536647771,-194.055372,0.00017396,2]
[351357492,1738536647780,-194.055372,0.00017396,2]
[351357494,1738536647790,-165.581721,0.00017397,2]
[351357496,1738536647800,-165.581721,0.00017397,2]
[351357497,1738536647809,-500.18,0.00017397,2]
[351357499,1738536647819,-151.0,0.00017397,2]
[351357500,1738536647829,-151.0,0.00017397,2]
[351357501,1738536647839,-533.49,0.00017397,2]
[351357502,1738536647849,-500.0,0.00017397,2]
[351357504,1738536647859,-500.0,0.00017397,2]
[351357506,1738536647869,-1145.47,0.00017397,2]
[351357507,1738536647878,-799.04,0.00017397,2]
[351357508,1738536647888,-500.0,0.00017397,2]
[351357509,1738536647898,-508.34,0.00017397,2]
[351357510,1738536647908,-1211.27,0.00017397,2]
[351357511,1738536647918,-7344.67,0.00017397,2]
[351357512,1738536647928,-6297.26,0.00017397,2]
[351357513,1738536647940,-650.73,0.00017397,2]
[351357514,1738536647949,-1715.66,0.00017397,2]
[351357515,1738536647959,-558.19,0.00017397,2]
[351357516,1738536647969,-803.62,0.00017397,2]
[351357517,1738536647978,-295.55900714,0.00017397,2]
[351357518,1738536647988,-1571.48,0.00017397,2]
[351357519,1738536647998,-500.0,0.00017397,2]
[351357520,1738536648008,-500.0,0.00017397,2]
[351357521,1738536648018,-612.31825773,0.00017397,2]
[351357522,1738536648028,-838.23,0.00017397,2]
[351357523,1738536648038,-610.09,0.00017397,2]
[351357524,1738536648047,-1341.99,0.00017397,2]
[351357525,1738536648058,-4068.28,0.00017397,2]
[351357526,1738536648068,-500.0,0.00017397,2]
[351357527,1738536648079,-500.0,0.00017397,2]
[351357528,1738536648089,-3625.05,0.00017397,2]
[351357529,1738536648100,-1352.18,0.00017397,2]
[351357530,1738536648110,-500.0,0.00017397,2]
[351357531,1738536648120,-657.54,0.00017397,2]
[351357532,1738536648130,-473.47398142,0.00017397,2]
[351357533,1738536648140,-1405.53,0.00017397,2]
[351357534,1738536648151,-903.71,0.00017397,2]
[351357535,1738536648161,-500.0,0.00017397,2]
[351357536,1738536648171,-751.75041632,0.00017417,2]
[351357537,1738536648182,-500.0,0.0001742,2]
[351357538,1738536648195,-151.0,0.00017439,3]
[351357539,1738536648205,-751.75041632,0.00017452,2]
[351357540,1738536648215,-529.61171868,0.00017454,2]
[351357541,1738536648224,-151.0,0.00017454,2]
[351357542,1738536648234,-292.214294,0.00017454,2]
[351357543,1738536648244,-151.0,0.0001746,2]
[351357544,1738536648254,-718.64536316,0.0001746,2]
[351357545,1738536648264,-166.99,0.00017467,2]
[351357546,1738536648273,-656.23900533,0.00017471,2]
[351357547,1738536648284,-751.75041632,0.00017486,2]
[351357548,1738536648294,-369.99305824,0.00017492,2]
[351357549,1738536648304,-2233.7849543,0.000175,2]
[351357550,1738536648420,-1620.49,0.00016712,2]
[351357551,1738536648430,-2199.66536551,0.000175,2]
[351357552,1738536648444,-713.74281636,0.000175,2]
[351357553,1738536648485,153.0,0.00013699,2]
[351357554,1738536648601,153.0,0.00013699,2]
[351357555,1738536648633,-500.0,0.00016575,2]
[351357556,1738536648642,-1599.9999998,0.00016849,2]
[351357557,1738536648655,-20.4900002,0.00016849,2]
[351357558,1738536648665,-802.66608026,0.00016986,2]
[351357559,1738536648676,-584.9756764,0.00016986,2]
[351357560,1738536648689,-232.84824334,0.00016986,2]
[351357561,1738536648699,-82.15175658,0.000175,2]
[351357562,1738536648716,-49770.86648066,0.000175,2]
[351357563,1738536648726,-231.075385,0.000175,2]
[351357564,1738536648736,-165.581721,0.000175,2]
[351357565,1738536648746,-165.581721,0.000175,2]
[351357566,1738536648755,-151.0,0.000175,2]
[351357567,1738536648765,-151.0,0.000175,2]
[351357568,1738536648774,-151.0,0.000175,2]
[351357569,1738536648784,-375.490446,0.000175,2]
[351357570,1738536648795,-375.490446,0.000175,2]
[351357571,1738536648805,-151.0,0.000175,2]
[351357572,1738536648816,-151.0,0.000175,2]
[351357573,1738536648826,-194.055372,0.000175,2]
[351357574,1738536648836,-194.055372,0.000175,2]
[351357575,1738536648846,-751.75041632,0.00017521,2]
[351357576,1738536648857,-243.39127368,0.00017521,2]
[351357577,1738536648867,-500.0,0.00017533,2]
[351357578,1738536648877,-533.49,0.00017534,2]
[351357579,1738536648886,-500.0,0.00017534,2]
[351357580,1738536648895,-500.0,0.00017534,2]
[351357581,1738536648905,-1145.47,0.00017534,2]
[351357582,1738536648914,-799.04,0.00017534,2]
[351357583,1738536648925,-500.0,0.00017534,2]
[351357584,1738536648935,-508.34,0.00017534,2]
[351357585,1738536648953,-1211.27,0.00017534,2]
[351357586,1738536648964,-7344.67,0.00017534,2]
[351357587,1738536648975,-6297.26,0.00017534,2]
[351357588,1738536648985,-650.73,0.00017534,2]
[351357589,1738536648996,-1715.66,0.00017534,2]
[351357590,1738536649006,-21.73147947,0.00017534,2]
[351357591,1738536649020,-536.45852053,0.00017534,2]
[351357592,1738536649030,-803.62,0.00017534,2]
[351357593,1738536649040,-1571.48,0.00017534,2]
[351357594,1738536649051,-507.36,0.00017534,2]
[351357595,1738536649062,-291.87863115,0.00017534,2]
[351357596,1738536649072,-838.23,0.00017534,2]
[351357597,1738536649082,-610.09,0.00017534,2]
[351357598,1738536649093,-4068.28,0.00017534,2]
[351357599,1738536649102,-1341.99,0.00017534,2]
[351357600,1738536649112,-500.0,0.00017534,2]
[351357601,1738536649121,-500.0,0.00017534,2]
[351357602,1738536649131,-3625.05,0.00017534,2]
[351357603,1738536649141,-1352.18,0.00017534,2]
[351357604,1738536649152,-500.0,0.00017534,2]
[351357605,1738536649161,-657.54,0.00017534,2]
[351357606,1738536649171,-1405.53,0.00017534,2]
[351357607,1738536649181,-903.71,0.00017534,2]
[351357608,1738536649194,-500.0,0.00017534,2]
[351357609,1738536649204,-151.0,0.00017551,4]
[351357610,1738536649214,-751.75041632,0.00017555,2]
[351357611,1738536649224,-751.75041632,0.0001759,2]
[351357612,1738536649239,-751.75041632,0.00017624,2]
[351357613,1738536649249,-151.0,0.00017634,2]
[351357614,1738536649261,-1200.0,0.00017634,2]
[351357615,1738536649271,-667.695,0.00017634,2]
[351357616,1738536649281,-294.0,0.0001765,2]
[351357617,1738536649291,-751.75041632,0.00017659,2]
[351357618,1738536649301,-151.0,0.00017659,2]
[351357619,1738536649311,-194.055372,0.00017659,2]
[351357620,1738536649335,-194.055372,0.00017659,2]
[351357621,1738536649345,-151.0,0.00017663,4]
[351357622,1738536649354,-151.0,0.0001767,2]
[351357623,1738536649364,-375.490446,0.0001767,2]
[351357624,1738536649374,-375.490446,0.0001767,2]
[351357625,1738536649384,-151.0,0.0001767,2]
[351357626,1738536649395,-625.88,0.0001767,2]
[351357627,1738536649405,-165.581721,0.00017671,2]
[351357628,1738536649416,-165.581721,0.00017671,2]
[351357629,1738536649425,-151.0,0.00017671,2]
[351357630,1738536649435,-533.49,0.00017671,2]
[351357631,1738536649448,-500.0,0.00017671,2]
[351357632,1738536649458,-500.0,0.00017671,2]
[351357633,1738536649468,-1145.47,0.00017671,2]
[351357634,1738536649478,-799.04,0.00017671,2]
[351357635,1738536649487,-500.0,0.00017671,2]
[351357636,1738536649497,-508.34,0.00017671,2]
[351357637,1738536649506,-1211.27,0.00017671,2]
[351357638,1738536649517,-7344.67,0.00017671,2]
[351357639,1738536649526,-6297.26,0.00017671,2]
[351357640,1738536649537,-650.73,0.00017671,2]
[351357641,1738536649546,-1715.66,0.00017671,2]
[351357642,1738536649556,-558.19,0.00017671,2]
[351357643,1738536649565,-803.62,0.00017671,2]
[351357644,1738536649575,-1571.48,0.00017671,2]
[351357645,1738536649584,-838.23,0.00017671,2]
[351357646,1738536649594,-610.09,0.00017671,2]
[351357647,1738536649603,-4068.28,0.00017671,2]
[351357648,1738536649616,-1341.99,0.00017671,2]
[351357649,1738536649625,-500.0,0.00017671,2]
[351357650,1738536649635,-500.0,0.00017671,2]
[351357651,1738536649644,-3625.05,0.00017671,2]
[351357652,1738536649654,-1352.18,0.00017671,2]
[351357653,1738536649663,-500.0,0.00017671,2]
[351357654,1738536649672,-657.54,0.00017671,2]
[351357655,1738536649682,-1405.53,0.00017671,2]
[351357656,1738536649695,-903.71,0.00017671,2]
[351357657,1738536649704,-500.0,0.00017671,2]
[351357658,1738536649713,-529.61171868,0.00017677,2]
[351357659,1738536649722,-751.75041632,0.00017693,2]
[351357660,1738536649731,-10000.0,0.000177,3]
[351357661,1738536649740,-1721.79,0.000177,2]
[351357662,1738536649749,-2000.0,0.000177,2]
[351357663,1738536649759,-9424.42881172,0.000177,2]
[351357664,1738536649768,-151.0,0.000177,2]
[351357665,1738536649778,-151.0,0.000177,2]
[351357666,1738536649787,-375.490446,0.000177,2]
[351357667,1738536649796,-375.490446,0.000177,2]
[351357668,1738536649805,-151.0,0.000177,2]
[351357669,1738536649814,-151.0,0.000177,2]
[351357670,1738536649823,-194.055372,0.000177,2]
[351357671,1738536649832,-194.055374,0.000177,2]
[351357672,1738536649841,-751.75041632,0.00017728,2]
[351357673,1738536649850,-165.581721,0.00017728,2]
[351357674,1738536649859,-165.581721,0.00017728,2]
[351357675,1738536649869,-751.75041632,0.00017762,2]
[351357676,1738536649878,-151.0,0.00017775,4]
[351357677,1738536649887,-751.75041632,0.00017797,2]
[351357678,1738536650000,-35914.86348236,0.000178,15]
[351357679,1738536650019,-1620.49,0.00017123,2]
[351357680,1738536650029,-16412.47907038,0.000178,15]
[351357681,1738536650040,-107356.70670096,0.000178,15]
[351357682,1738536650051,-4846.27551141,0.000178,15]
[351357683,1738536650063,-8116.86005363,0.000178,15]
[351357684,1738536652757,153.0,0.00013699,2]
[351357685,1738536652996,153.0,0.00013699,2]
[351357686,1738536653242,153.0,0.00013699,2]
[351357696,1738537064814,153.0,0.00013699,2]
[351357697,1738537065048,153.0,0.00013699,2]
[351357698,1738537065274,153.0,0.00013699,2]
[351357699,1738537069620,153.0,0.00013699,2]
[351357700,1738537070031,153.0,0.00013699,2]
[351357701,1738537134752,153.0,0.00013699,2]
[351357702,1738537134972,153.0,0.00013699,2]
[351357703,1738537135186,153.0,0.00013699,2]
[351357704,1738537139308,153.0,0.00013699,2]
[351357705,1738537139623,153.0,0.00013699,2]
[351357708,1738537185381,153.0,0.00013699,2]
[351357709,1738537185647,153.0,0.00013699,2]
[351357710,1738537185898,153.0,0.00013699,2]
[351357711,1738537191507,153.0,0.00013699,2]
[351357712,1738537191718,153.0,0.00013699,2]
[351357713,1738537246823,153.0,0.00013699,2]
[351357714,1738537247038,153.0,0.00013699,2]
[351357715,1738537252793,153.0,0.00013699,2]
[351357716,1738537253002,153.0,0.00013699,2]
[351357748,1738537480174,165.185542,0.00013699,2]
[351357749,1738537515850,256.831229,0.00013973,2]
[351357752,1738537605017,153.0,0.00013699,2]
[351357753,1738537608403,153.0,0.00013699,2]
[351357762,1738537665241,153.0,0.00013699,2]
[351357763,1738537665485,153.0,0.00013699,2]
[351357764,1738537669241,153.0,0.00013699,2]
[351357765,1738537729788,153.0,0.00013699,2]